bitfinex/quotes_ETHUSD_20250525
["timestamp","ask_amount","ask_price","bid_price","bid_amount"]
[1748136318701,0.66666667,2490.6,2490.5,21.3227]
[1748136320988,0.66666667,2490.6,2490.5,9.3057]
[1748136321191,0.66666667,2490.6,2490.5,21.3217]
[1748136321984,0.66666667,2490.6,2490.5,8.7557]
[1748136322520,0.66666667,2490.6,2490.5,21.3207]
[1748136324971,0.66666667,2490.6,2490.5,8.7557]
[1748136325213,0.66666667,2490.6,2490.5,20.7707]
[1748136326512,0.02,2490.9,2490.5,13.178618]
[1748136326813,0.02,2490.9,2490.7,0.55]
[1748136327020,0.02,2490.9,2490.6,12.837]
[1748136327513,0.02,2490.9,2490.3,0.822]
[1748136327713,0.4817,2490.8,2490.4,12.014]
[1748136330015,0.02,2490.9,2490.5,8.7582]
[1748136330219,0.5017,2490.9,2490.5,8.0]
[1748136330776,0.5017,2490.9,2490.2,0.7582]
[1748136330777,0.5017,2490.9,2490.6,12.015]
[1748136331588,0.02,2490.9,2490.6,12.015]
[1748136333142,0.02,2490.9,2490.6,12.7732]
[1748136333313,0.02,2490.9,2490.6,12.015]
[1748136334025,0.02,2490.9,2490.4,0.8276]
[1748136334228,0.02,2490.9,2490.5,12.015]
[1748136334556,0.4817,2490.8,2490.6,12.015]
[1748136336172,0.4817,2490.8,2489.9,1.30617477]
[1748136336367,0.05018984,2490.7,2490.0,12.015]
[1748136336666,0.4817,2490.6,2489.9,0.47857477]
[1748136336805,0.4817,2490.4,2490.0,12.015]
[1748136337001,0.4817,2490.2,2490.0,12.015]
[1748136337421,0.4817,2490.2,2490.1,6.728]
[1748136337754,0.4817,2490.2,2490.1,29.148]
[1748136337906,1.24953865,2490.2,2490.1,12.015]
[1748136338107,0.84658059,2490.2,2490.1,12.015]
[1748136338497,0.4817,2490.2,2490.1,12.015]
[1748136339544,0.4817,2490.2,2489.3,0.7618]
[1748136339726,0.4817,2490.2,2489.4,12.017]
[1748136340929,0.4817,2490.0,2489.5,12.017]
[1748136341133,0.4817,2489.8,2489.5,12.017]
[1748136342547,0.4817,2489.8,2488.5,1.17214829]
[1748136342762,0.4817,2489.8,2489.6,12.019]
[1748136345446,0.4817,2489.8,2488.5,1.17214829]
[1748136345647,0.4817,2489.8,2488.7,8.0]
[1748136345849,0.4817,2489.8,2488.8,12.02]
[1748136346665,0.4817,2489.8,2488.9,12.02]
[1748136346666,0.4817,2489.6,2488.9,12.02]
[1748136346967,0.4817,2489.5,2489.0,12.02]
[1748136347469,0.4817,2489.5,2488.5,0.41034829]
[1748136347470,0.4817,2489.4,2489.1,35.852]
[1748136347673,1.32987,2489.3,2489.2,17.101]
[1748136348527,0.4817,2489.2,2488.1,0.02]
[1748136348731,0.53192652,2489.2,2488.1,0.02]
[1748136348946,0.4817,2489.2,2488.2,12.021]
[1748136349873,0.4817,2489.2,2488.1,0.57]
[1748136350077,0.4817,2489.2,2488.3,0.55]
[1748136350239,0.4817,2489.2,2488.4,0.8122]
[1748136350861,0.4817,2489.2,2488.5,0.55]
[1748136351177,10.7317,2489.6,2488.7,0.55]
[1748136351477,0.4817,2489.6,2488.7,0.55]
[1748136352071,0.4817,2489.6,2488.7,0.9520618]
[1748136352579,0.4817,2490.2,2488.9,0.55]
[1748136357452,0.4817,2490.2,2489.1,8.55]
[1748136359540,0.4817,2490.2,2489.1,0.55]
[1748136361409,0.4817,2490.2,2489.1,1.163618]
[1748136361686,10.25,2490.8,2489.7,0.55]
[1748136361687,0.4817,2490.8,2489.7,0.55]
[1748136361869,0.4817,2490.8,2490.1,0.55]
[1748136362038,0.02,2490.9,2490.1,1.163618]
[1748136362240,0.02,2490.9,2490.2,0.55]
[1748136362439,0.02,2490.9,2490.4,0.55]
[1748136362747,0.02,2490.9,2490.6,0.55]
[1748136363841,0.02,2490.9,2490.6,0.75394365]
[1748136364068,0.02,2490.9,2490.8,0.55]
[1748136364669,0.02,2490.9,2490.8,9.3618]
[1748136365205,0.02,2490.9,2490.8,8.0]
[1748136365520,0.02,2490.9,2490.8,20.019]
[1748136366061,0.02,2490.9,2490.8,20.569]
[1748136366714,0.02,2490.9,2490.8,20.567]
[1748136367492,0.02,2490.9,2490.8,61.699]
[1748136368816,0.02,2490.9,2490.8,38.278618]
[1748136369247,0.02,2490.9,2490.8,21.180618]
[1748136370133,0.02,2490.9,2490.8,21.178618]
[1748136370332,0.02,2490.9,2490.8,20.015]
[1748136373221,0.02,2490.9,2490.8,21.394418]
[1748136375080,0.02,2490.9,2490.8,21.92249632]
[1748136376642,0.02,2490.9,2490.8,9.90749632]
[1748136376837,0.02,2490.9,2490.8,8.0]
[1748136377086,0.02,2490.9,2490.8,20.013]
[1748136377241,0.02,2490.9,2490.8,20.626618]
[1748136377442,0.02,2490.9,2490.8,61.703618]
[1748136377838,0.02,2490.9,2490.8,37.677618]
[1748136378085,0.02,2490.9,2490.8,21.93679632]
[1748136378607,0.02,2490.9,2490.8,21.408718]
[1748136378904,0.02,2490.9,2490.8,20.626618]
[1748136379806,0.02,2490.9,2490.8,21.458118]
[1748136382303,0.02,2490.9,2490.8,21.98619632]
[1748136384387,0.02,2490.9,2490.8,21.98519632]
[1748136385129,0.02,2490.9,2490.8,21.456118]
[1748136385470,0.02,2490.9,2490.8,21.8367191]
[1748136386015,0.4817,2491.8,2490.9,8.613618]
[1748136386171,0.4817,2491.8,2491.0,0.7672]
[1748136386367,0.02,2491.9,2491.1,1.14169632]
[1748136386822,0.02,2491.9,2491.2,0.7672]
[1748136386990,0.02,2491.9,2491.3,0.613618]
[1748136387315,0.02,2491.9,2491.3,1.14169632]
[1748136387522,0.02,2491.9,2491.4,42.36427832]
[1748136387727,0.02,2491.9,2491.4,42.449818]
[1748136387904,0.02,2491.9,2491.6,0.7]
[1748136388077,0.02,2491.9,2491.6,1.313618]
[1748136388416,0.4817,2492.6,2491.7,1.380818]
[1748136389081,0.4817,2492.6,2491.8,0.38158572]
[1748136389783,0.4817,2492.6,2491.9,12.011]
[1748136390629,0.4817,2492.6,2492.0,8.0]
[1748136390787,0.4817,2492.6,2491.8,0.613618]
[1748136390993,0.4817,2492.6,2492.2,8.0]
[1748136391191,1.22974739,2494.7,2492.3,0.2]
[1748136391392,1.22974739,2494.7,2493.1,0.9592]
[1748136391723,1.22974739,2494.7,2493.5,0.7592]
[1748136391882,1.22974739,2494.7,2493.6,1.25063429]
[1748136392089,1.98070403,2494.9,2493.8,0.47857477]
[1748136392284,1.98070403,2494.9,2493.9,0.7592]
[1748136392727,1.98070403,2494.9,2494.1,8.0]
[1748136392931,1.98070403,2494.9,2494.3,8.0]
[1748136393302,1.98070403,2494.9,2494.5,0.47857477]
[1748136393487,2.48240403,2494.9,2494.5,0.47857477]
[1748136393834,2.48240403,2494.9,2494.7,8.0]
[1748136395231,2.48240403,2494.9,2494.8,12.005]
[1748136396237,0.5017,2494.8,2494.1,0.47857477]
[1748136396530,0.5017,2494.7,2494.2,12.005]
[1748136396729,0.5017,2494.7,2494.3,12.002]
[1748136397610,0.5017,2494.7,2493.6,0.39146391]
[1748136397803,0.5017,2494.7,2492.8,0.7592]
[1748136397804,0.5017,2494.7,2493.7,12.002]
[1748136398008,0.5017,2494.7,2493.8,8.0]
[1748136398833,0.02,2494.9,2493.8,8.0]
[1748136398834,0.02,2494.9,2493.9,0.7592]
[1748136400135,0.02,2494.9,2494.0,0.3775433]
[1748136400756,0.02,2494.9,2494.1,12.001]
[1748136400929,0.02,2494.9,2494.2,8.0]
[1748136402227,0.02,2494.9,2494.3,0.3775433]
[1748136403756,0.02,2494.9,2494.4,0.3775433]
[1748136404464,0.02,2494.9,2494.5,0.3775433]
[1748136404826,0.02,2494.9,2494.6,0.7635]
[1748136405169,0.02,2494.9,2494.7,12.0]
[1748136405717,0.02,2494.9,2494.8,0.85611807]
[1748136406760,0.02,2494.9,2494.8,12.85411807]
[1748136407481,0.02,2495.9,2494.9,0.7635]
[1748136408294,0.02,2495.9,2495.2,0.47857477]
[1748136408592,0.02,2495.9,2495.3,11.998]
[1748136409154,0.02,2495.9,2495.4,0.3775433]
[1748136409570,0.5017,2495.8,2495.5,11.995]
[1748136410098,0.02,2495.9,2495.6,0.7999]
[1748136410304,0.5217,2495.9,2495.7,11.995]
[1748136411701,0.5217,2495.9,2495.8,11.995]
[1748136411994,0.5217,2495.9,2495.8,11.994]
[1748136417611,0.5217,2495.9,2495.8,54.155]
[1748136418479,0.5217,2495.9,2495.1,0.47857477]
[1748136418819,0.5217,2495.9,2495.2,11.993]
[1748136418820,0.5017,2495.7,2495.2,11.993]
[1748136419023,0.5017,2495.7,2494.9,0.4027932]
[1748136419024,0.5017,2495.7,2494.9,0.47857477]
[1748136419186,0.5017,2495.5,2495.3,11.993]
[1748136419388,0.5017,2495.5,2495.4,11.993]
[1748136419931,0.83202372,2495.5,2495.4,11.993]
[1748136420777,1.19788916,2495.5,2495.4,11.993]
[1748136420971,0.5017,2495.4,2494.4,0.47857477]
[1748136421334,0.5017,2495.2,2494.5,11.994]
[1748136422027,0.5017,2495.2,2494.6,0.38163758]
[1748136422813,0.5017,2495.2,2494.7,11.994]
[1748136423030,0.85017,2495.1,2494.7,11.994]
[1748136423250,0.5017,2495.0,2494.7,11.994]
[1748136423956,0.5017,2495.0,2493.9,0.47857477]
[1748136424125,10.25,2495.0,2494.8,11.995]
[1748136424313,0.86965935,2494.9,2494.8,11.995]
[1748136424531,2.30744229,2494.9,2494.8,11.995]
[1748136425156,0.5017,2494.8,2493.9,0.47857477]
[1748136425295,0.5017,2494.8,2493.7,0.47857477]
[1748136425489,0.5017,2494.8,2494.0,11.995]
[1748136425890,0.36795935,2494.7,2494.0,11.995]
[1748136427107,0.5017,2494.8,2494.0,11.995]
[1748136427629,0.5017,2494.8,2494.1,17.274]
[1748136427816,0.36795935,2494.9,2494.2,30.326]
[1748136427817,0.55181559,2494.7,2494.2,30.326]
[1748136428019,0.55181559,2494.7,2494.2,11.996]
[1748136428020,0.5017,2494.7,2494.2,11.996]
[1748136428220,0.36795935,2494.6,2494.2,11.996]
[1748136428407,0.5017,2494.5,2494.2,11.996]
[1748136431646,2.71012294,2494.4,2494.3,11.997]
[1748136431949,3.53300523,2494.4,2494.3,11.997]
[1748136432312,0.82288229,2494.4,2494.3,11.997]
[1748136432510,0.5017,2494.3,2493.1,0.8267]
[1748136432825,0.5017,2494.2,2493.2,11.998]
[1748136434927,0.5017,2494.2,2493.3,11.998]
[1748136437444,0.5017,2494.2,2493.4,42.333]
[1748136437834,0.5017,2494.2,2493.4,18.335]
[1748136438376,0.5017,2494.2,2493.3,11.998]
[1748136439830,0.05011994,2494.3,2493.1,1.21697687]
[1748136440038,10.25,2494.4,2493.3,8.0]
[1748136440870,10.25,2494.4,2493.4,0.7942]
[1748136441834,2.408,2494.3,2493.4,0.7942]
[1748136442040,10.25,2494.4,2493.4,0.7942]
[1748136443640,10.25,2494.4,2493.5,12.0]
[1748136443873,11.32517,2494.4,2493.5,12.0]
[1748136444076,1.07517,2494.4,2493.4,0.7942]
[1748136444273,0.5017,2494.3,2493.6,12.0]
[1748136447610,0.5017,2494.3,2493.7,42.336]
[1748136449098,0.5017,2494.3,2493.3,0.47857477]
[1748136449271,0.5017,2494.3,2493.5,8.0]
[1748136449919,0.5017,2494.3,2493.3,0.47857477]
[1748136450065,0.5017,2494.3,2493.6,12.0]
[1748136450464,0.5017,2494.3,2493.6,12.38286397]
[1748136450886,0.5017,2494.3,2493.6,12.69215445]
[1748136451089,0.5017,2494.3,2493.6,12.38286397]
[1748136451280,0.5017,2494.3,2493.6,12.0]
[1748136451904,0.5017,2494.3,2493.7,12.0]
[1748136452108,0.5017,2494.3,2493.8,12.0]
[1748136453098,0.5017,2494.3,2493.9,12.0]
[1748136453420,0.5017,2494.3,2494.0,12.0]
[1748136453581,0.5017,2494.1,2494.0,12.0]
[1748136453978,0.5017,2494.1,2493.1,0.49857477]
[1748136453979,2.71012294,2494.1,2493.1,0.49857477]
[1748136454220,0.5017,2493.7,2493.2,12.0]
[1748136455083,0.49828889,2493.7,2493.2,12.0]
[1748136456186,0.49828889,2493.7,2493.1,0.02]
[1748136456589,0.49828889,2493.7,2493.2,12.0]
[1748136456923,0.37399061,2493.6,2493.2,12.0]
[1748136457299,0.37399061,2493.6,2493.3,12.001]
[1748136457482,0.37399061,2493.6,2493.4,17.757]
[1748136457683,0.37399061,2493.5,2493.1,0.02]
[1748136457913,0.42413258,2493.5,2493.2,12.001]
[1748136458121,0.4982,2493.3,2493.2,12.001]
[1748136460611,0.4982,2493.3,2493.2,12.002]
[1748136462645,0.4982,2493.3,2493.1,0.02]
[1748136462941,0.4982,2493.3,2493.2,12.003]
[1748136465515,1.0482,2493.3,2493.2,12.003]
[1748136465722,0.4982,2493.3,2493.2,12.003]
[1748136466752,2.9062,2493.3,2493.2,12.003]
[1748136466929,0.4982,2493.3,2493.2,12.003]
[1748136467504,10.7482,2493.6,2493.2,29.764]
[1748136467703,10.25,2493.6,2493.2,12.003]
[1748136469268,0.4982,2494.1,2493.3,0.7529]
[1748136470864,0.4982,2494.1,2493.4,12.004]
[1748136472159,3.20832294,2494.1,2493.4,12.004]
[1748136472361,3.20832294,2494.1,2493.1,0.7729]
[1748136472545,0.60195833,2494.0,2493.2,12.004]
[1748136474885,0.60195833,2494.0,2493.1,0.7729]
[1748136475049,0.60195833,2494.0,2493.2,12.003]
[1748136476913,2.71012294,2493.9,2493.2,12.003]
[1748136477117,0.4982,2493.8,2493.3,12.003]
[1748136477323,0.56163229,2493.7,2493.3,12.003]
[1748136477609,3.20832294,2493.6,2493.4,17.76]
[1748136477774,3.20832294,2493.6,2493.4,29.763]
[1748136477974,3.20832294,2493.6,2493.4,12.003]
[1748136478201,3.20832294,2493.6,2493.1,0.02]
[1748136478599,0.05014105,2493.5,2493.2,12.003]
[1748136478806,0.55,2493.5,2493.2,12.003]
[1748136480613,0.55,2493.5,2493.1,0.02]
[1748136480614,0.4982,2493.4,2493.1,0.02]
[1748136480914,0.4982,2493.4,2493.3,12.004]
[1748136481088,0.8717462,2493.4,2493.3,12.004]
[1748136481288,1.52573311,2493.4,2493.3,12.004]
[1748136482317,0.4982,2493.4,2493.3,12.004]
[1748136483019,1.05983229,2493.7,2493.3,12.004]
[1748136483316,0.4982,2493.7,2493.3,12.004]
[1748136483536,10.7482,2493.9,2493.3,12.004]
[1748136483903,10.25,2493.9,2493.3,12.004]
[1748136484103,0.4982,2494.2,2493.4,0.7816]
[1748136484624,0.37376918,2494.1,2493.4,0.7816]
[1748136485433,0.4982,2494.2,2493.4,0.7816]
[1748136486332,0.4982,2494.4,2493.4,8.7816]
[1748136487207,0.37355283,2494.3,2493.4,8.7816]
[1748136487551,0.37355283,2494.3,2493.6,8.0]
[1748136487907,0.37355283,2494.3,2493.7,0.7816]
[1748136488110,0.37355283,2494.6,2493.7,0.7816]
[1748136489546,0.37355283,2494.9,2493.7,0.7816]
[1748136490674,0.4982,2495.0,2493.7,0.7816]
[1748136490866,0.4982,2495.0,2493.6,0.7816]
[1748136492177,0.87175283,2495.0,2493.6,0.7816]
[1748136492755,0.87175283,2495.0,2493.8,0.7667]
[1748136492960,8.0,2495.4,2494.0,0.7667]
[1748136492961,0.4982,2495.3,2494.0,0.7667]
[1748136493163,0.37355283,2495.4,2493.8,0.9465533]
[1748136493164,0.37355283,2495.4,2494.1,0.7667]
[1748136493683,0.37355283,2495.4,2493.9,1.3435]
[1748136493881,0.37355283,2495.4,2494.2,0.7935]
[1748136494239,0.39355283,2495.9,2494.8,0.55]
[1748136494461,0.39355283,2495.9,2495.1,0.7935]
[1748136495591,0.02,2495.9,2495.1,0.7935]
[1748136495912,0.02,2495.9,2495.3,0.7935]
[1748136497469,0.02,2495.9,2495.4,41.396]
[1748136498163,0.02,2495.9,2495.5,0.7935]
[1748136499572,0.02,2495.9,2495.6,11.996]
[1748136499811,0.02,2495.9,2495.7,11.996]
[1748136501503,0.02,2495.9,2495.8,8.0]
[1748136502397,0.02,2495.9,2495.8,8.7815]
[1748136502764,0.02,2495.9,2495.8,12.7765]
[1748136503011,0.02,2495.9,2495.8,20.7765]
[1748136503177,0.02,2495.9,2495.3,0.7815]
[1748136503383,0.02,2495.9,2495.5,8.0]
[1748136503578,0.02,2495.9,2495.3,0.7815]
[1748136503906,0.02,2495.9,2495.4,11.995]
[1748136504312,0.02,2495.9,2495.5,11.995]
[1748136504469,0.02,2495.9,2495.3,0.7815]
[1748136504470,0.02,2495.9,2495.6,11.995]
[1748136507420,0.02,2495.9,2494.7,0.8119]
[1748136507421,0.4982,2495.8,2494.7,0.8119]
[1748136507570,0.05008935,2495.7,2494.8,46.653]
[1748136507776,0.4982,2495.8,2494.8,29.383]
[1748136507976,0.548296,2495.8,2494.8,11.993]
[1748136508318,0.4982,2495.6,2494.8,11.993]
[1748136508487,0.54829891,2495.6,2494.8,11.993]
[1748136508815,0.4982,2495.4,2494.4,0.8119]
[1748136509112,0.4982,2495.4,2494.9,11.993]
[1748136509618,0.4982,2495.8,2495.0,0.8119]
[1748136510310,0.02,2495.9,2495.0,8.8119]
[1748136510905,0.02,2495.9,2495.0,0.8119]
[1748136511122,0.02,2495.9,2495.1,11.993]
[1748136511123,0.4982,2495.8,2495.1,11.993]
[1748136512486,0.02,2495.9,2495.1,11.993]
[1748136517597,0.02,2495.9,2495.2,41.127]
[1748136518206,0.02,2495.9,2495.3,29.135]
[1748136518405,0.02,2495.9,2495.0,0.8119]
[1748136518406,0.02,2495.9,2495.4,11.993]
[1748136523448,0.02,2495.9,2495.5,8.8021]
[1748136524223,0.02,2495.9,2495.5,9.19725232]
[1748136525524,0.02,2495.9,2495.6,0.3789868]
[1748136526846,0.02,2495.9,2495.5,8.8021]
[1748136527072,0.02,2495.9,2495.6,11.991]
[1748136527073,0.4982,2495.8,2495.6,11.991]
[1748136527411,0.02,2495.9,2495.7,6.715]
[1748136527615,0.02,2495.9,2495.7,17.14]
[1748136528043,0.02,2495.9,2495.6,11.991]
[1748136530745,0.02,2495.9,2495.2,0.774]
[1748136530946,0.02,2495.9,2495.3,11.991]
[1748136532170,0.02,2495.9,2494.9,0.761]
[1748136532328,0.02,2495.9,2495.0,11.991]
[1748136533027,0.02,2495.9,2495.1,0.37711589]
[1748136533867,0.02,2495.9,2495.2,0.37711589]
[1748136535268,0.02,2495.9,2495.1,0.37711589]
[1748136536471,0.02,2495.9,2495.1,8.37711589]
[1748136537131,0.02,2495.9,2495.2,0.37711589]
[1748136537373,2.428,2495.9,2495.2,0.37711589]
[1748136537667,0.02,2495.9,2495.3,17.14]
[1748136537839,0.02,2495.9,2495.2,1.16131589]
[1748136537840,0.02,2495.9,2495.2,0.37711589]
[1748136538246,0.02,2495.9,2495.3,0.7842]
[1748136539611,0.02,2495.9,2495.4,0.37711589]
[1748136540442,0.02,2495.9,2495.5,0.7842]
[1748136541536,0.02,2495.9,2495.5,1.18637112]
[1748136541738,0.02,2495.9,2495.7,8.0]
[1748136541938,0.02,2495.9,2495.8,11.991]
[1748136544557,0.02,2495.9,2495.8,12.819]
[1748136545083,0.02,2495.9,2495.8,20.819]
[1748136546046,0.02,2495.9,2495.8,21.19795901]
[1748136546291,0.02,2495.9,2495.8,20.36995901]
[1748136547101,0.02,2495.9,2495.8,0.37895901]
[1748136547591,0.4982,2495.8,2495.1,0.47857477]
[1748136547766,0.54829437,2495.8,2495.2,11.99]
[1748136548087,0.4982,2495.6,2495.2,11.99]
[1748136548487,0.4982,2495.4,2495.2,11.99]
[1748136549093,0.4982,2495.4,2495.3,11.99]
[1748136549291,0.4982,2495.4,2494.0,1.27087477]
[1748136549452,0.4982,2495.2,2494.1,11.99]
[1748136549789,0.4982,2495.1,2494.1,11.99]
[1748136549966,0.4982,2495.1,2494.2,8.0]
[1748136550291,0.4982,2495.1,2494.3,11.991]
[1748136550486,0.4982,2495.1,2494.0,0.7923]
[1748136550487,0.4982,2495.1,2494.4,11.991]
[1748136551058,0.4982,2495.1,2494.0,8.0]
[1748136551259,0.4982,2494.9,2494.1,11.991]
[1748136553665,0.4982,2494.9,2493.6,0.39391515]
[1748136554002,0.4982,2494.9,2494.2,11.993]
[1748136554165,0.4982,2494.9,2493.5,0.7923]
[1748136554366,0.4982,2494.9,2493.6,11.993]
[1748136554629,2.71012294,2495.0,2493.6,11.993]
[1748136554630,0.4982,2494.7,2493.6,11.993]
[1748136556506,0.4982,2494.7,2493.5,0.78888888]
[1748136557561,0.4982,2494.7,2493.6,41.126]
[1748136557761,0.4982,2494.7,2493.7,11.995]
[1748136558429,0.4982,2494.7,2493.2,0.19571182]
[1748136558632,0.4982,2494.7,2491.1,6.01886317]
[1748136558633,0.5017,2494.5,2493.4,8.0]
[1748136558926,0.5017,2494.5,2493.5,11.996]
[1748136559519,0.5017,2494.5,2493.5,12.7867]
[1748136559717,0.5017,2494.5,2493.6,8.0]
[1748136562326,0.5017,2494.5,2493.7,0.7907]
[1748136563032,0.5017,2494.5,2493.8,11.997]
[1748136564127,0.5017,2494.5,2493.9,11.997]
[1748136564929,0.5017,2494.5,2493.2,0.3902357]
[1748136565130,0.5017,2494.5,2494.0,11.997]
[1748136566629,0.5017,2494.5,2493.1,0.02]
[1748136566829,0.5017,2494.5,2494.1,11.997]
[1748136567132,0.5017,2494.5,2494.2,11.997]
[1748136567590,0.5017,2494.5,2494.3,17.14]
[1748136568826,0.5017,2494.5,2493.1,0.02]
[1748136569033,0.5017,2494.5,2493.2,11.998]
[1748136569231,1.59177,2494.4,2493.2,11.998]
[1748136569396,0.55182476,2494.3,2493.1,0.02]
[1748136569593,0.55182476,2494.3,2493.3,11.998]
[1748136570705,0.5017,2494.1,2493.1,0.02]
[1748136570915,0.5017,2494.1,2493.2,11.999]
[1748136571111,0.5017,2494.1,2493.1,0.02]
[1748136571317,0.5017,2493.9,2493.2,11.999]
[1748136571755,0.55183373,2493.9,2493.3,11.999]
[1748136572051,0.5017,2493.9,2493.3,11.999]
[1748136572246,0.5017,2493.9,2493.1,0.02]
[1748136572443,0.5017,2493.9,2493.2,11.999]
[1748136572603,0.5017,2493.7,2493.2,11.999]
[1748136573131,0.5017,2493.7,2493.3,11.999]
[1748136574549,0.5017,2493.7,2493.1,0.02]
[1748136574756,0.5017,2493.5,2493.1,0.02]
[1748136574903,2.71012294,2493.2,2493.1,0.02]
[1748136575217,4.38816439,2493.2,2493.1,12.02]
[1748136575418,3.21182294,2493.2,2493.1,12.02]
[1748136575918,24.41082294,2493.2,2493.1,0.02]
[1748136576125,24.41082294,2493.2,2493.1,12.02]
[1748136576346,24.41082294,2493.2,2493.1,0.02]
[1748136576519,0.55,2492.9,2492.1,0.02]
[1748136576720,2.76028165,2492.8,2492.2,12.002]
[1748136577454,2.76028165,2492.8,2492.3,6.721]
[1748136577656,0.4817,2492.7,2492.3,17.127]
[1748136577814,0.4817,2492.5,2492.3,17.127]
[1748136578016,0.4817,2492.5,2492.1,0.02]
[1748136578359,0.53185872,2492.5,2492.1,0.02]
[1748136578528,0.53185872,2492.5,2492.2,12.002]
[1748136578724,0.4817,2492.4,2492.2,12.002]
[1748136578930,0.80088229,2492.3,2492.2,12.002]
[1748136579333,0.80088229,2492.3,2492.1,0.02]
[1748136579527,0.80088229,2492.3,2492.2,12.002]
[1748136580556,0.4817,2492.2,2492.1,0.02]
[1748136580752,0.4817,2492.2,2492.1,12.024]
[1748136580914,1.36178823,2492.2,2492.1,12.024]
[1748136581759,0.4817,2492.2,2492.1,12.024]
[1748136582957,0.4817,2492.2,2491.1,0.02]
[1748136583522,0.5117,2492.0,2491.1,0.02]
[1748136584015,0.5117,2492.0,2491.2,12.006]
[1748136585737,8.56186015,2492.7,2491.2,12.006]
[1748136585933,1.6759445,2492.6,2491.3,0.7663]
[1748136586244,1.6759445,2492.6,2491.5,0.7663]
[1748136587062,0.5117,2492.6,2491.5,0.7663]
[1748136587447,0.5117,2492.6,2491.6,41.151]
[1748136587653,0.5117,2492.6,2491.6,17.135]
[1748136589145,0.5117,2492.6,2491.7,8.792]
[1748136589938,0.5117,2492.6,2491.7,0.792]
[1748136590334,0.5117,2492.6,2491.8,12.008]
[1748136590535,1.0617,2492.5,2491.9,12.008]
[1748136590739,0.61708229,2492.4,2491.9,12.008]
[1748136593230,0.5117,2492.3,2491.4,1.492]
[1748136593529,0.5117,2492.2,2491.5,12.008]
[1748136593929,0.5117,2492.2,2491.2,0.792]
[1748136594579,0.5117,2492.2,2491.6,12.008]
[1748136597481,0.5117,2492.2,2491.7,53.164]
[1748136597636,0.5117,2492.2,2491.8,17.137]
[1748136599294,0.5117,2492.2,2491.9,12.009]
[1748136599648,0.5117,2492.5,2491.9,12.009]
[1748136600475,0.5117,2492.7,2492.0,8.0]
[1748136600740,0.37262652,2492.8,2492.1,0.792]
[1748136601041,0.5117,2493.5,2492.1,0.792]
[1748136601275,0.5117,2493.5,2492.2,0.7]
[1748136601441,0.56208229,2493.4,2492.2,0.7]
[1748136602257,0.37293749,2493.3,2492.3,0.7901]
[1748136602755,0.56184129,2493.2,2492.4,12.009]
[1748136602960,0.55,2493.1,2492.5,12.009]
[1748136603160,0.5117,2493.2,2492.5,12.009]
[1748136603364,0.37293749,2493.1,2492.5,12.009]
[1748136603975,0.37293749,2493.1,2492.5,12.8345]
[1748136604543,0.37293749,2493.0,2492.5,12.8345]
[1748136604740,0.37293749,2493.0,2492.2,0.7]
[1748136604952,0.37293749,2493.0,2492.6,12.008]
[1748136605186,0.37293749,2493.0,2492.7,12.008]
[1748136605687,0.37293749,2492.9,2492.7,12.008]
[1748136605980,0.37293749,2492.9,2492.8,12.008]
[1748136606368,0.5117,2492.8,2492.2,0.7]
[1748136606569,0.5117,2492.8,2492.3,12.008]
[1748136606775,0.05015362,2492.7,2492.3,12.008]
[1748136607489,0.37293749,2492.9,2492.4,17.103]
[1748136607689,0.37293749,2492.8,2492.4,17.103]
[1748136607990,0.37293749,2492.8,2492.3,12.8335]
[1748136608387,0.5117,2493.1,2492.3,12.8335]
[1748136608588,13.65912294,2493.6,2492.3,12.8335]
[1748136608589,0.5117,2493.5,2492.3,12.8335]
[1748136609276,0.42360429,2493.4,2492.3,12.8335]
[1748136609477,0.5117,2493.3,2492.3,12.8335]
[1748136609650,0.0501458,2493.2,2492.3,12.8335]
[1748136609850,0.5117,2493.1,2492.3,12.008]
[1748136610096,0.32719687,2493.0,2492.3,12.008]
[1748136610391,3.22182294,2492.9,2492.4,12.007]
[1748136610695,3.27197614,2492.9,2492.4,12.007]
[1748136610898,0.5117,2492.8,2492.5,12.007]
[1748136611099,0.37346291,2492.7,2492.5,12.007]
[1748136612369,0.5117,2493.2,2492.5,12.007]
[1748136613186,0.5117,2493.2,2492.3,0.8067]
[1748136613374,0.5117,2493.2,2492.4,12.007]
[1748136616169,8.0,2493.6,2492.4,12.007]
[1748136616502,0.5117,2493.5,2492.6,0.802]
[1748136617081,1.825,2493.6,2492.6,0.802]
[1748136617604,10.7617,2493.7,2492.7,17.101]
[1748136617805,10.7617,2493.7,2492.8,0.802]
[1748136618678,10.7617,2493.7,2492.5,8.0]
[1748136618679,0.5117,2493.6,2492.9,12.006]
[1748136618879,0.5117,2493.6,2492.3,0.7944]
[1748136619077,1.07617,2493.5,2493.0,12.006]
[1748136619521,0.5117,2493.4,2493.1,12.006]